bitfinex/quotes_BTCUSD_20241229
["timestamp","ask_amount","ask_price","bid_price","bid_amount"]
[1735455859004,0.59085137,95392.0,95391.0,0.0511686]
[1735455859775,0.59085137,95392.0,95391.0,0.0491686]
[1735455859980,0.59085137,95392.0,95391.0,0.0501686]
[1735455860337,0.59085137,95392.0,95391.0,0.0521686]
[1735455860564,0.01229437,95392.0,95391.0,0.0521686]
[1735455860917,0.578557,95394.0,95391.0,0.0491686]
[1735455861124,0.578557,95392.0,95391.0,0.0491686]
[1735455861426,0.01481071,95393.0,95391.0,0.0501686]
[1735455861630,0.578557,95392.0,95391.0,0.0521686]
[1735455861955,0.59085137,95392.0,95391.0,0.0521686]
[1735455862775,0.59085137,95392.0,95391.0,0.0511686]
[1735455863005,0.59085137,95392.0,95391.0,0.0521686]
[1735455863412,0.59085137,95392.0,95391.0,0.0511686]
[1735455863813,0.59085137,95392.0,95391.0,0.0521686]
[1735455865919,0.59085137,95392.0,95391.0,0.04877196]
[1735455866119,0.59336765,95392.0,95391.0,0.04877196]
[1735455867282,0.59336765,95392.0,95391.0,0.04894256]
[1735455868016,0.60981814,95392.0,95391.0,0.04894256]
[1735455868522,0.79846747,95392.0,95391.0,0.04894256]
[1735455869636,0.60981814,95392.0,95391.0,0.04894256]
[1735455870730,0.84587395,95392.0,95391.0,0.04894256]
[1735455871335,0.60981814,95392.0,95391.0,0.04894256]
[1735455873119,0.59336765,95392.0,95391.0,0.04894256]
[1735455876232,0.01481065,95392.0,95391.0,0.04894256]
[1735455876795,0.59336765,95392.0,95391.0,0.04894256]
[1735455877707,0.60981817,95392.0,95391.0,0.04894256]
[1735455879310,0.60981817,95392.0,95391.0,0.12644802]
[1735455879311,0.15053517,95392.0,95391.0,0.12644802]
[1735455879494,0.03126117,95392.0,95391.0,0.12644802]
[1735455879670,0.03134657,95392.0,95391.0,0.12644802]
[1735455880309,0.13136157,95392.0,95391.0,0.12644802]
[1735455880538,0.28922957,95392.0,95391.0,0.12644802]
[1735455882806,0.28922957,95392.0,95391.0,0.15208282]
[1735455882989,0.27662957,95392.0,95391.0,0.23298282]
[1735455883125,0.26017905,95392.0,95391.0,0.23298282]
[1735455884560,0.26017905,95392.0,95391.0,0.20734802]
[1735455886749,0.276628,95392.0,95391.0,0.20734802]
[1735455893201,0.26017905,95392.0,95391.0,0.20734802]
[1735455896433,0.27662847,95392.0,95391.0,0.20734802]
[1735455900415,0.60990247,95392.0,95391.0,0.20734802]
[1735455902091,0.24561647,95392.0,95391.0,0.20734802]
[1735455902448,0.20729247,95392.0,95391.0,0.20734802]
[1735455902881,0.19084305,95392.0,95391.0,0.20734802]
[1735455903240,0.19084305,95392.0,95391.0,0.20534802]
[1735455903416,0.18769305,95392.0,95391.0,0.20534802]
[1735455903756,0.19009392,95392.0,95391.0,0.20734802]
[1735455903934,0.19009392,95392.0,95391.0,0.20534802]
[1735455904317,0.19009392,95392.0,95391.0,0.21434802]
[1735455904584,0.19009392,95392.0,95391.0,0.21334802]
[1735455905028,0.19009392,95392.0,95391.0,0.21434802]
[1735455905562,0.19009392,95392.0,95391.0,0.21334802]
[1735455905994,0.20654308,95392.0,95391.0,0.21734802]
[1735455911699,0.20554908,95392.0,95391.0,0.21734802]
[1735455912523,0.03059608,95392.0,95391.0,0.21734802]
[1735455912920,0.01653456,95392.0,95391.0,0.21734802]
[1735455913333,8.54e-05,95392.0,95391.0,0.21734802]
[1735455917731,0.01653426,95392.0,95391.0,0.21734802]
[1735455919599,0.29525026,95392.0,95391.0,0.21734802]
[1735455919969,0.48005169,95392.0,95391.0,0.21734802]
[1735455921084,0.03094869,95392.0,95391.0,0.21734802]
[1735455921500,0.01653426,95392.0,95391.0,0.21734802]
[1735455923186,8.54e-05,95392.0,95391.0,0.21734802]
[1735455923995,8.54e-05,95392.0,95391.0,0.20834802]
[1735455924329,8.54e-05,95392.0,95391.0,0.20434802]
[1735455924501,8.54e-05,95392.0,95391.0,0.21734802]
[1735455925083,8.54e-05,95392.0,95391.0,0.21334802]
[1735455925213,8.54e-05,95392.0,95391.0,0.20434802]
[1735455925423,0.59305947,95392.0,95391.0,0.20434802]
[1735455925623,0.5786424,95392.0,95391.0,0.20434802]
[1735455925873,0.59305947,95392.0,95391.0,0.20434802]
[1735455926428,0.59305947,95392.0,95391.0,0.21734802]
[1735455927477,0.29493547,95392.0,95391.0,0.21734802]
[1735455927741,0.23648859,95392.0,95391.0,0.21734802]
[1735455933115,0.22003947,95392.0,95391.0,0.21734802]
[1735455937823,0.23648859,95392.0,95391.0,0.21734802]
[1735455939681,0.03095159,95392.0,95391.0,0.21734802]
[1735455943172,0.01450247,95392.0,95391.0,0.21734802]
[1735455944770,0.01450247,95392.0,95391.0,0.32133434]
[1735455950558,0.03095071,95392.0,95391.0,0.37023434]
[1735455950695,0.01653364,95392.0,95391.0,0.37023434]
[1735455953113,8.54e-05,95392.0,95391.0,0.37023434]
[1735455953946,0.01653338,95392.0,95391.0,0.37023434]
[1735455955357,0.01653338,95392.0,95391.0,0.40725777]
[1735455955553,0.01653338,95392.0,95391.0,0.37023434]
[1735455956164,8.54e-05,95392.0,95391.0,0.37023434]
[1735455959235,0.01653266,95392.0,95391.0,0.37023434]
[1735455963062,8.54e-05,95392.0,95391.0,0.37023434]
[1735455966383,0.01653264,95392.0,95391.0,0.37023434]
[1735455966600,0.01653264,95392.0,95391.0,0.41725777]
[1735455968362,0.01653264,95392.0,95391.0,0.37023434]
[1735455973272,0.00050871,95397.0,95396.0,0.34977742]
[1735455973507,0.00050871,95397.0,95396.0,0.45376374]
[1735455974757,0.00050871,95397.0,95396.0,0.55699643]
[1735455975919,0.00050871,95397.0,95396.0,0.46276374]
[1735455976119,0.00050871,95397.0,95396.0,0.54261535]
[1735455976418,0.00050871,95397.0,95396.0,0.55161535]
[1735455977016,0.00050871,95397.0,95396.0,0.47176374]
[1735455977431,0.01695285,95397.0,95396.0,0.47176374]
[1735455977635,0.01695285,95397.0,95396.0,1.01090754]
[1735455979795,0.01695285,95397.0,95396.0,1.11090754]
[1735455981397,0.01695285,95397.0,95396.0,1.01090754]
[1735455981602,0.01695285,95397.0,95396.0,1.21489386]
[1735455982741,0.00050871,95397.0,95396.0,1.21489386]
[1735455984068,0.00059411,95397.0,95396.0,1.21489386]
[1735455985784,0.0170376,95397.0,95396.0,1.21489386]
[1735455986191,0.01289996,95397.0,95396.0,1.21489386]
[1735455989092,8.53e-05,95400.0,95399.0,0.22327742]
[1735455989331,0.00013612,95400.0,95399.0,0.50858838]
[1735455989490,0.00013612,95400.0,95399.0,1.04773218]
[1735455989839,0.0165796,95400.0,95399.0,1.04773218]
[1735455990435,0.0165796,95400.0,95399.0,1.05673218]
[1735455990809,0.0165796,95400.0,95399.0,1.06573218]
[1735455993366,0.00013612,95400.0,95399.0,1.06573218]
[1735455996621,0.0165795,95400.0,95399.0,1.06573218]
[1735456001331,0.0165795,95400.0,95399.0,1.17653218]
[1735456001684,0.0165795,95400.0,95399.0,1.06573218]
[1735456001882,0.163747,95444.0,95438.0,0.04577196]
[1735456002075,0.578557,95443.0,95438.0,0.04577196]
[1735456002311,0.60512585,95443.0,95438.0,0.04577196]
[1735456002460,0.578557,95442.0,95438.0,0.04577196]
[1735456002663,0.5886832,95442.0,95438.0,0.04577196]
[1735456003004,0.578557,95441.0,95438.0,0.04577196]
[1735456003169,0.578557,95441.0,95438.0,0.04677196]
[1735456003339,0.01012608,95440.0,95438.0,0.04677196]
[1735456003566,0.578557,95439.0,95438.0,0.04577196]
[1735456003785,0.578557,95439.0,95438.0,0.04677196]
[1735456004003,0.58868302,95439.0,95438.0,0.04677196]
[1735456004522,0.58868302,95439.0,95438.0,0.04977196]
[1735456004661,0.58868302,95439.0,95438.0,0.04677196]
[1735456004875,0.58868302,95439.0,95438.0,0.04877196]
[1735456005721,0.57536802,95439.0,95438.0,0.04877196]
[1735456006515,0.59181027,95439.0,95438.0,0.04877196]
[1735456006721,0.57951427,95439.0,95438.0,0.04877196]
[1735456006879,0.55687227,95439.0,95438.0,0.05077196]
[1735456009832,0.55695767,95439.0,95438.0,0.05077196]
[1735456010347,0.54481267,95439.0,95438.0,0.05077196]
[1735456011229,0.54481267,95439.0,95438.0,0.03433196]
[1735456012663,0.02665367,95439.0,95438.0,0.03433196]
[1735456013211,0.58876842,95439.0,95438.0,0.03433196]
[1735456016411,0.60521041,95439.0,95438.0,0.03433196]
[1735456019932,0.23696541,95439.0,95438.0,0.11183742]
[1735456020114,0.23696541,95439.0,95438.0,0.19902116]
[1735456020115,0.16220141,95439.0,95438.0,0.19902116]
[1735456020733,0.16220141,95439.0,95438.0,0.18783742]
[1735456020872,0.16220141,95439.0,95438.0,0.18583742]
[1735456021073,0.16220141,95439.0,95438.0,0.18900822]
[1735456021278,0.16220141,95439.0,95438.0,0.18600822]
[1735456021521,0.16220141,95439.0,95438.0,0.19400822]
[1735456021739,0.16220141,95439.0,95438.0,0.11650276]
[1735456021944,0.16220141,95439.0,95438.0,0.19400822]
[1735456022296,0.15207539,95439.0,95438.0,0.19400822]
[1735456022497,0.16052868,95439.0,95438.0,0.19100822]
[1735456022937,0.16052868,95439.0,95438.0,0.19600822]
[1735456023306,0.16052868,95439.0,95438.0,0.18300822]
[1735456023681,0.16052868,95439.0,95438.0,0.19700822]
[1735456023889,0.16052868,95439.0,95438.0,0.18800822]
[1735456024095,0.16052868,95439.0,95438.0,0.18300822]
[1735456024288,0.16052868,95439.0,95438.0,0.19200822]
[1735456024498,0.16052868,95439.0,95438.0,0.19700822]
[1735456024857,0.16052868,95439.0,95438.0,0.20600822]
[1735456025057,0.16052868,95439.0,95438.0,0.19700822]
[1735456025710,0.16052868,95439.0,95438.0,0.19200822]
[1735456026341,0.16052868,95439.0,95438.0,0.19700822]
[1735456026752,0.16052868,95439.0,95438.0,0.20600822]
[1735456026927,0.16052868,95439.0,95438.0,0.18800822]
[1735456027189,0.16052868,95439.0,95438.0,0.19700822]
[1735456027387,0.16052868,95439.0,95438.0,0.30099454]
[1735456027592,0.16052868,95439.0,95438.0,0.34639454]
[1735456028582,0.02498068,95439.0,95438.0,0.34639454]
[1735456028977,0.01652739,95439.0,95438.0,0.34639454]
[1735456033175,8.54e-05,95439.0,95438.0,0.34639454]
[1735456035985,8.54e-05,95439.0,95438.0,0.44639454]
[1735456036190,0.01652493,95439.0,95438.0,0.44639454]
[1735456037396,0.01652493,95439.0,95438.0,0.98553834]
[1735456037896,0.01652493,95439.0,95438.0,0.97653834]
[1735456038097,0.01652493,95439.0,95438.0,1.07552466]
[1735456039073,0.01652493,95439.0,95438.0,1.08352466]
[1735456039373,0.01652493,95439.0,95438.0,1.19252466]
[1735456040123,0.00013622,95444.0,95438.0,1.19252466]
[1735456040124,0.00013622,95444.0,95443.0,0.30683742]
[1735456040388,0.00013622,95444.0,95443.0,0.53342374]
[1735456040517,0.00013622,95444.0,95443.0,0.52664361]
[1735456040721,0.01657296,95444.0,95443.0,0.52664361]
[1735456041377,0.01657296,95444.0,95443.0,0.62664361]
[1735456041581,0.01657296,95444.0,95443.0,0.63364361]
[1735456042006,0.01657296,95444.0,95443.0,0.62664361]
[1735456042386,0.01657296,95444.0,95443.0,0.63564361]
[1735456042589,0.01657296,95444.0,95443.0,0.64464361]
[1735456042920,0.01657296,95444.0,95443.0,0.62664361]
[1735456043121,0.00013622,95444.0,95443.0,0.62664361]
[1735456043345,0.00013622,95444.0,95443.0,0.63564361]
[1735456043521,0.00013622,95444.0,95443.0,0.64464361]
[1735456043720,0.00013622,95444.0,95443.0,1.18378741]
[1735456045122,0.00013622,95444.0,95443.0,1.09056754]
[1735456047653,0.01657271,95444.0,95443.0,1.09056754]
[1735456051320,0.01657271,95444.0,95443.0,0.81306208]
[1735456052132,0.01657271,95444.0,95443.0,0.80406208]
[1735456052476,0.01657271,95444.0,95443.0,0.79506208]
[1735456052661,0.01657271,95444.0,95443.0,0.26491828]
[1735456052869,0.01657271,95444.0,95443.0,0.25591828]
[1735456053067,0.01657271,95444.0,95443.0,0.26391828]
[1735456053226,0.00013622,95444.0,95443.0,0.35042374]
[1735456054689,0.00013622,95444.0,95443.0,0.34242374]
[1735456054876,0.00013622,95444.0,95443.0,0.36693706]
[1735456055189,0.00013622,95444.0,95443.0,0.34942374]
[1735456057728,0.01657405,95444.0,95443.0,0.34942374]
[1735456059182,0.01657405,95444.0,95443.0,0.27191828]
[1735456059493,0.01657405,95444.0,95443.0,0.34942374]
[1735456059907,0.01657405,95444.0,95443.0,0.27191828]
[1735456061229,0.01657405,95444.0,95443.0,0.14231828]
[1735456061574,0.01657405,95444.0,95443.0,0.14931828]
[1735456062080,0.01657405,95444.0,95443.0,0.14031828]
[1735456062295,0.01657405,95444.0,95443.0,0.14931828]
[1735456062930,0.00013622,95444.0,95443.0,0.14931828]
[1735456063073,0.00013622,95444.0,95443.0,0.22682374]
[1735456063288,0.00013622,95444.0,95443.0,0.14931828]
[1735456065020,0.00013622,95444.0,95443.0,0.22682374]
[1735456066214,0.01657417,95444.0,95443.0,0.22682374]
[1735456067304,0.01657417,95444.0,95443.0,0.30572374]
[1735456068017,0.01657417,95444.0,95443.0,0.22821828]
[1735456068228,0.01657417,95444.0,95443.0,0.30572374]
[1735456070317,0.01657417,95444.0,95443.0,0.22821828]
[1735456070996,0.01657417,95444.0,95443.0,0.30572374]
[1735456071223,0.01657417,95444.0,95443.0,0.22682374]
[1735456071508,0.01657417,95444.0,95443.0,0.04533196]
[1735456071509,0.59513117,95444.0,95443.0,0.04533196]
[1735456071667,0.59513117,95444.0,95443.0,0.12283742]
[1735456071877,0.6040579,95444.0,95443.0,0.04533196]
[1735456072928,0.6040579,95444.0,95443.0,0.03633196]
[1735456073137,0.58761995,95444.0,95443.0,0.03633196]
[1735456073336,0.58761995,95444.0,95443.0,0.03833196]
[1735456073532,0.58761995,95444.0,95443.0,0.11583742]
[1735456073853,0.58761995,95444.0,95443.0,0.12083742]
[1735456074032,0.58761995,95444.0,95443.0,0.11583742]
[1735456074453,0.58761995,95444.0,95443.0,0.12083742]
[1735456074652,0.36320595,95444.0,95443.0,0.12083742]
[1735456076362,0.37964532,95444.0,95443.0,0.12083742]
[1735456079949,0.30610832,95444.0,95443.0,0.12083742]
[1735456080158,0.28510932,95444.0,95443.0,0.12083742]
[1735456083402,0.33736795,95444.0,95443.0,0.12083742]
[1735456083520,0.16584395,95444.0,95443.0,0.19813742]
[1735456086276,0.18228311,95444.0,95443.0,0.19813742]
[1735456087178,0.02550211,95444.0,95443.0,0.19813742]
[1735456087576,0.01657538,95444.0,95443.0,0.11763185]
[1735456089294,0.01657538,95444.0,95443.0,0.24253185]
[1735456090404,0.01657538,95444.0,95443.0,0.34651817]
[1735456093365,0.00013622,95444.0,95443.0,0.34651817]
[1735456096757,0.01657466,95444.0,95443.0,0.34651817]
[1735456101086,0.01657466,95444.0,95443.0,0.24253185]
[1735456103113,0.01657466,95444.0,95443.0,0.24270265]
[1735456103307,0.00013622,95444.0,95443.0,0.24270265]
[1735456106311,0.01657492,95444.0,95443.0,0.24270265]
[1735456113562,0.01657492,95444.0,95443.0,0.21657626]
[1735456113721,0.01657492,95444.0,95443.0,0.24270265]
[1735456115467,0.01657492,95444.0,95443.0,0.21657626]
[1735456115650,0.01657492,95444.0,95443.0,0.24270265]
[1735456116427,0.01657492,95444.0,95443.0,0.16519719]
[1735456116745,0.01657492,95444.0,95443.0,0.24270265]
[1735456117515,0.00013622,95444.0,95443.0,0.24270265]
[1735456119990,0.01657494,95444.0,95443.0,0.24270265]
[1735456121059,0.01619562,95444.0,95443.0,0.24270265]
[1735456124569,0.02508003,95444.0,95443.0,0.24270265]
[1735456125883,0.02508003,95444.0,95443.0,0.16519719]
[1735456126244,0.02508003,95444.0,95443.0,0.24270265]
[1735456126536,0.00888441,95444.0,95443.0,0.24270265]
[1735456126896,0.0002,95449.0,95443.0,0.24270265]
[1735456127140,0.52521965,95448.0,95443.0,0.24270265]
[1735456127362,0.00888465,95448.0,95443.0,0.24270265]
[1735456127647,0.00888465,95448.0,95447.0,0.07750546]
[1735456128021,0.51911965,95448.0,95447.0,0.07750546]
[1735456129018,0.51911965,95448.0,95447.0,0.08650546]
[1735456129570,0.53555836,95448.0,95447.0,0.08650546]
[1735456130185,0.53555836,95448.0,95447.0,0.09050546]
[1735456130716,0.18601236,95448.0,95447.0,0.19753185]
[1735456131569,0.02532336,95448.0,95447.0,0.19753185]
[1735456132561,0.18073836,95448.0,95447.0,0.19753185]
[1735456133197,0.16429965,95448.0,95447.0,0.19753185]
[1735456136474,0.18073832,95448.0,95447.0,0.19753185]
[1735456137692,0.18073832,95448.0,95447.0,0.09050546]
[1735456138365,0.41656237,95448.0,95447.0,0.09050546]
[1735456138896,0.41656237,95448.0,95447.0,0.013]
[1735456139038,0.41664777,95448.0,95447.0,0.09050546]
[1735456139467,0.18082372,95448.0,95447.0,0.09050546]
[1735456139687,0.22723353,95448.0,95447.0,0.013]
[1735456140690,0.22723353,95448.0,95447.0,0.009]
[1735456141033,0.22723353,95448.0,95447.0,0.08050546]
[1735456141392,0.22723353,95448.0,95447.0,0.08750546]
[1735456141588,0.22723353,95448.0,95447.0,0.007]
[1735456141889,0.22723353,95448.0,95447.0,0.015]
[1735456142054,0.22723353,95448.0,95447.0,0.018]
[1735456142277,0.22723353,95448.0,95447.0,0.09550546]
[1735456142690,0.18082372,95448.0,95447.0,0.09550546]
[1735456143257,0.16438505,95448.0,95447.0,0.09550546]
[1735456144742,0.16438505,95448.0,95447.0,0.018]
[1735456146287,0.18082491,95448.0,95447.0,0.018]
[1735456148727,0.02540991,95448.0,95447.0,0.018]
[1735456148936,0.05627834,95448.0,95447.0,0.018]
[1735456149135,0.63483534,95448.0,95447.0,0.018]
[1735456150312,0.63483534,95448.0,95447.0,0.015]
[1735456150547,0.63483534,95448.0,95447.0,0.016]
[1735456150749,0.63483534,95448.0,95447.0,0.009]
[1735456150894,0.63483534,95448.0,95447.0,0.001]
[1735456151093,0.63483534,95448.0,95447.0,0.003]
[1735456151294,0.63483534,95448.0,95447.0,0.001]
[1735456151743,0.63483534,95448.0,95447.0,0.004]
[1735456151918,0.63483534,95448.0,95447.0,0.003]
[1735456152125,0.63483534,95448.0,95444.0,0.0001708]
[1735456152317,0.60641668,95447.0,95444.0,0.0001708]
[1735456152522,0.578557,95446.0,95444.0,0.0001708]
[1735456152720,0.58742565,95446.0,95444.0,0.0001708]
[1735456153071,0.578557,95445.0,95444.0,0.0001708]
[1735456153391,0.58742559,95445.0,95444.0,0.0001708]
[1735456153591,0.61829402,95445.0,95444.0,0.0001708]
[1735456154175,0.61829402,95445.0,95444.0,0.0021708]
[1735456154328,0.61829402,95445.0,95444.0,0.0001708]
[1735456154496,0.61829402,95445.0,95444.0,0.0011708]
[1735456154697,0.61829402,95445.0,95444.0,0.0031708]
[1735456155888,0.6347355,95445.0,95444.0,0.0031708]
[1735456158268,0.6347355,95445.0,95444.0,0.0021708]
[1735456158467,0.6347355,95445.0,95444.0,0.0001708]
[1735456158668,0.6357355,95445.0,95444.0,0.0001708]
[1735456158994,0.70960911,95445.0,95444.0,0.0001708]
[1735456159388,0.13105211,95445.0,95444.0,0.0001708]
[1735456160039,0.70960911,95445.0,95444.0,0.0001708]
[1735456160243,0.7511104,95445.0,95444.0,0.0001708]
[1735456160596,0.76755216,95445.0,95444.0,0.0001708]
[1735456161266,0.48400706,95445.0,95444.0,0.0001708]
[1735456163109,0.4675653,95445.0,95444.0,0.0001708]
[1735456163522,0.4676507,95445.0,95444.0,0.0001708]
[1735456166280,0.48409246,95445.0,95444.0,0.0001708]
[1735456169379,0.67282345,95445.0,95444.0,0.0001708]
[1735456171681,0.48409246,95445.0,95444.0,0.0001708]
[1735456173361,0.72000003,95445.0,95444.0,0.0001708]
[1735456174214,0.48409246,95445.0,95444.0,0.0001708]
[1735456176155,0.02389246,95445.0,95444.0,0.0001708]
[1735456176438,0.48409246,95445.0,95444.0,0.0001708]
[1735456176679,0.47672716,95445.0,95444.0,0.0001708]
[1735456176891,0.48408873,95445.0,95444.0,0.0001708]
[1735456182169,0.46764697,95445.0,95444.0,0.0001708]
[1735456188088,0.75119207,95445.0,95444.0,0.0001708]
[1735456190909,0.46764697,95445.0,95444.0,0.0001708]
[1735456208080,0.46764697,95445.0,95443.0,0.12254027]
[1735456208461,0.4602,95444.0,95443.0,0.12254027]
[1735456208872,0.46755712,95444.0,95443.0,0.12254027]
[1735456212280,0.24027998,95444.0,95443.0,0.12254027]
[1735456212484,0.24028012,95444.0,95443.0,0.12254027]
[1735456212725,0.24028012,95444.0,95438.0,0.0001708]
[1735456212927,0.232923,95443.0,95438.0,0.0001708]
[1735456213247,0.232923,95442.0,95438.0,0.0001708]
[1735456213407,0.232923,95441.0,95438.0,0.0001708]
[1735456213605,0.24028012,95440.0,95438.0,0.0001708]
[1735456214700,0.24028012,95440.0,95439.0,0.0011708]
[1735456214908,0.24028012,95440.0,95439.0,0.0001708]
[1735456216910,0.24228012,95440.0,95439.0,0.0001708]
[1735456217123,0.24328012,95440.0,95439.0,0.0001708]
[1735456217322,0.24528012,95440.0,95439.0,0.0001708]
[1735456217533,0.24428012,95440.0,95439.0,0.0001708]
[1735456217776,0.24796105,95440.0,95439.0,0.0001708]
[1735456218694,0.01503805,95440.0,95439.0,0.0001708]
[1735456218810,0.24796105,95440.0,95439.0,0.0001708]
[1735456222787,0.45240971,95440.0,95439.0,0.0001708]
[1735456222997,0.47439668,95440.0,95439.0,0.0001708]
[1735456223517,0.46939668,95440.0,95439.0,0.0001708]
[1735456223744,0.47039668,95440.0,95439.0,0.0001708]
[1735456224129,0.02249454,95423.0,95410.0,0.0464]
[1735456224334,0.232923,95422.0,95410.0,0.0464]
[1735456224888,0.28348476,95412.0,95410.0,0.0464]
[1735456225095,0.232923,95411.0,95410.0,0.0464]
[1735456225309,0.24315579,95411.0,95410.0,0.0464]
[1735456226726,0.24315579,95411.0,95410.0,0.0474]
[1735456226926,0.24315579,95411.0,95410.0,0.0484]
[1735456227132,0.24315579,95411.0,95410.0,0.0474]
[1735456227341,0.24315579,95411.0,95410.0,0.124]
[1735456227545,0.24315579,95411.0,95410.0,0.125]
[1735456228366,0.24315579,95411.0,95410.0,0.126]
[1735456229867,0.01023279,95411.0,95410.0,0.126]
[1735456230052,0.24315579,95411.0,95410.0,0.126]
[1735456230210,0.232923,95411.0,95410.0,0.126]
[1735456230438,0.24605416,95411.0,95410.0,0.126]
[1735456230635,0.47897716,95411.0,95410.0,0.126]
[1735456231671,0.24315955,95411.0,95410.0,0.126]
[1735456233949,0.24315955,95411.0,95410.0,0.1261708]
[1735456234279,0.43170899,95411.0,95410.0,0.1261708]
[1735456235898,0.24315955,95411.0,95410.0,0.1261708]
[1735456237880,0.43165928,95411.0,95410.0,0.1261708]
[1735456244664,0.19873628,95411.0,95410.0,0.1261708]
[1735456244816,0.43165928,95411.0,95410.0,0.1261708]
[1735456246403,0.43165928,95411.0,95410.0,0.0021708]
[1735456247973,0.24315955,95411.0,95410.0,0.0001708]
[1735456248708,0.24315955,95411.0,95410.0,0.0011708]
[1735456251787,0.24315955,95411.0,95405.0,0.0817]
[1735456251788,0.24315955,95411.0,95405.0,0.07814451]
[1735456252015,0.232923,95410.0,95405.0,0.07814451]
[1735456252386,0.00967805,95409.0,95405.0,0.07814451]
[1735456252590,0.232923,95408.0,95405.0,0.07814451]
[1735456253187,0.00967793,95407.0,95405.0,0.03596228]
[1735456253390,0.232923,95406.0,95405.0,0.03596228]
[1735456253768,0.24260087,95406.0,95405.0,0.0302466]
[1735456254177,0.24260087,95406.0,95405.0,0.0312466]
[1735456254380,0.24260087,95406.0,95405.0,0.0302466]
[1735456254751,0.24260087,95406.0,95405.0,0.002]
[1735456255162,0.24260087,95406.0,95405.0,0.003]
[1735456255709,0.24260087,95406.0,95405.0,0.002]
[1735456255938,0.24260087,95406.0,95405.0,0.003]
[1735456256340,0.24260087,95406.0,95401.0,0.0468206]
[1735456256550,0.232923,95405.0,95401.0,0.0468206]
[1735456256753,0.24260105,95405.0,95401.0,0.0468206]
[1735456256966,0.232923,95404.0,95402.0,0.0805]
[1735456257149,0.24260099,95404.0,95402.0,0.0805]
[1735456257385,0.232923,95403.0,95402.0,0.0805]
[1735456257756,0.24260087,95403.0,95402.0,0.0805]
[1735456258508,0.24260087,95403.0,95402.0,0.0835]
[1735456258745,0.24260087,95403.0,95402.0,0.0805]
[1735456259107,0.24260087,95403.0,95402.0,0.0825]
[1735456260168,0.24260087,95403.0,95402.0,0.0855]
[1735456260955,0.24260087,95403.0,95402.0,0.005]
[1735456261375,0.00967787,95403.0,95402.0,0.005]
[1735456261737,0.24260087,95403.0,95402.0,0.005]
[1735456268221,0.52608563,95403.0,95402.0,0.005]
[1735456269313,0.24260087,95403.0,95402.0,0.078]
[1735456269464,0.24260087,95403.0,95402.0,0.1259]
[1735456269832,0.24260087,95403.0,95402.0,0.1229]
[1735456270265,0.24260087,95403.0,95402.0,0.1239]
[1735456270488,0.24260087,95403.0,95402.0,0.1229]
[1735456270668,0.24260087,95403.0,95402.0,0.11735566]
[1735456271018,0.24260087,95403.0,95402.0,0.12035566]
[1735456271221,0.24260087,95403.0,95402.0,0.12235566]
[1735456271623,0.52667359,95403.0,95402.0,0.12235566]
[1735456273442,0.29375059,95403.0,95402.0,0.12235566]
[1735456273642,0.52667359,95403.0,95402.0,0.12235566]
[1735456274873,0.24260087,95403.0,95402.0,0.12235566]
[1735456277215,0.24260087,95403.0,95402.0,0.22235566]
[1735456277918,0.24260087,95403.0,95402.0,0.22035566]
[1735456278074,0.24260087,95403.0,95402.0,0.21635566]
[1735456278296,0.24260087,95403.0,95402.0,0.21835566]
[1735456278686,0.24260087,95403.0,95402.0,0.11635566]
[1735456279472,0.24260087,95403.0,95402.0,0.12435566]
[1735456279809,0.24260087,95403.0,95402.0,0.11935566]
[1735456280178,0.24260087,95403.0,95402.0,0.12335566]
[1735456280855,0.24260087,95403.0,95402.0,0.12035566]
[1735456281061,0.24260087,95403.0,95402.0,0.12235566]
[1735456281572,0.24260087,95403.0,95402.0,0.053071]
[1735456281772,0.24268637,95403.0,95402.0,0.05026925]
[1735456282248,0.24268637,95403.0,95402.0,0.006171]
[1735456282453,0.24268637,95403.0,95402.0,0.004171]
[1735456282660,0.24268637,95403.0,95402.0,0.000171]
[1735456282837,0.24268637,95403.0,95402.0,0.002171]
[1735456283013,0.24268637,95403.0,95402.0,0.006171]
[1735456285662,0.32348637,95403.0,95402.0,0.004171]
[1735456286181,0.32348637,95403.0,95402.0,0.000171]
[1735456286593,0.32448637,95403.0,95402.0,0.000171]
[1735456287093,0.32848637,95403.0,95402.0,0.000171]
[1735456287534,0.32948637,95403.0,95402.0,0.000171]
[1735456287647,0.24868637,95403.0,95402.0,0.000171]
[1735456299617,0.32588637,95403.0,95402.0,0.000171]
[1735456301021,0.24868637,95403.0,95402.0,0.000171]
[1735456302065,0.24568637,95403.0,95402.0,0.000171]
[1735456302244,0.24809655,95403.0,95402.0,0.000171]
[1735456302784,0.32319655,95403.0,95402.0,0.000171]
[1735456303588,0.24809655,95403.0,95402.0,0.000171]
[1735456305763,0.56692158,95403.0,95402.0,0.000171]
[1735456306386,0.33399858,95403.0,95402.0,0.000171]
[1735456306584,0.56692158,95403.0,95402.0,0.000171]
[1735456308574,0.58941612,95403.0,95402.0,0.000171]
[1735456310125,0.27059109,95403.0,95402.0,0.000171]
[1735456310966,0.37105691,95403.0,95402.0,0.000171]
[1735456311161,0.40397628,95403.0,95402.0,0.000171]
[1735456311797,0.1368611,95403.0,95402.0,0.000171]
[1735456312002,3.4920411,95403.0,95402.0,0.000171]
[1735456312220,3.3888061,95403.0,95402.0,0.001171]
[1735456312904,3.3928061,95403.0,95402.0,0.001171]
[1735456313337,3.3888061,95403.0,95402.0,0.001171]
[1735456313551,3.3928061,95403.0,95402.0,0.001171]
[1735456315094,3.2240591,95403.0,95402.0,0.001171]
[1735456315800,0.02249454,95394.0,95382.0,0.04229947]
[1735456316037,0.02249454,95394.0,95382.0,0.04280818]
[1735456316265,3.026623,95393.0,95382.0,0.04280818]
[1735456316722,0.00755999,95392.0,95382.0,0.04280818]
[1735456317105,3.063217,95391.0,95382.0,0.04280818]
[1735456317303,0.00755987,95390.0,95382.0,0.04280818]
[1735456317508,3.271895,95389.0,95382.0,0.04280818]
[1735456317734,0.2361247,95383.0,95382.0,0.04280818]
[1735456318108,0.24368463,95383.0,95382.0,0.04280818]
[1735456318310,2.47465163,95383.0,95382.0,0.03343529]
[1735456318521,2.47483263,95383.0,95382.0,0.03343529]
[1735456319122,2.47483263,95383.0,95382.0,0.02197529]
[1735456320310,2.47483263,95383.0,95382.0,0.02297529]
[1735456321506,2.47483263,95383.0,95382.0,0.02197529]
[1735456321843,2.47683263,95383.0,95382.0,0.02197529]
[1735456322229,2.47783263,95383.0,95382.0,0.02197529]
[1735456323392,2.24170793,95383.0,95382.0,0.02197529]
[1735456323937,2.05900193,95383.0,95382.0,0.02197529]
[1735456324382,2.05900193,95383.0,95382.0,0.01683514]
[1735456325205,2.05900193,95383.0,95382.0,0.01238658]
[1735456325335,1.75529993,95383.0,95382.0,0.01238658]
[1735456325540,1.73219493,95383.0,95382.0,0.01238658]
[1735456327777,1.47748693,95383.0,95382.0,0.01238658]
[1735456328468,1.47748693,95383.0,95382.0,0.01247208]
[1735456328691,1.47765793,95383.0,95382.0,0.01247208]
[1735456328879,1.47765793,95383.0,95382.0,0.09397208]